{"text_format":"1","workbook":"xlsx","n_sheets":1,"sheets":["záv. vyúčto a zpráva - posl.rok"],"not_rendered":{"charts":0,"images":1,"macros":1,"external_links":0,"defined_names":12,"comments":0,"pivot_tables":0},"unopened":[],"bounds":{"document_bytes":16777216,"sheet_cells":100000,"rows_first":2000,"rows_last":500,"rows_between":2000,"halvings":0,"cell_chars":16384,"cell_head_chars":4096},"cells_cut":0,"cells_raw":0,"read":"whole","date_system":"1900"}

{"sheet":"záv. vyúčto a zpráva - posl.rok","index":0,"n_rows":132,"n_cols":26,"rows_kept":132,"cut":false,"hidden":false,"merged":[[103,0,103,7],[104,0,104,7],[16,0,16,3],[16,4,16,7],[18,0,18,3],[18,5,18,7],[93,0,93,5],[93,6,93,7],[96,0,96,4],[96,5,96,7],[98,0,98,2],[102,0,102,7],[66,3,66,4],[67,3,67,4],[68,3,68,4],[69,3,69,4],[72,8,74,8],[77,1,77,7],[79,1,79,7],[82,0,88,7],[91,0,91,2],[91,3,91,4],[91,6,91,7],[72,0,72,4],[65,3,65,4],[53,0,53,2],[53,6,53,7],[54,0,54,2],[54,6,54,7],[60,3,60,4],[61,3,61,4],[62,3,62,4],[63,3,63,4],[64,3,64,4],[56,0,56,2],[56,6,56,7],[20,0,20,3],[20,5,20,7],[25,0,48,7],[52,0,52,2],[52,6,52,7],[21,0,21,3],[21,5,21,7],[5,0,5,7],[7,0,7,3],[7,4,7,7],[8,0,8,3],[8,4,8,7],[10,0,10,3],[10,4,10,7],[70,3,70,4],[11,0,11,3],[11,4,11,7],[12,0,12,3],[12,4,12,7],[14,0,14,3],[14,4,14,7],[15,0,15,3],[15,4,15,7],[17,0,17,3],[17,5,17,7],[19,5,19,7],[55,0,55,2],[55,6,55,7]]}
[]
[]
[]
[]
[]
["Závěrečné vyúčtování / vypořádání projektu podpořeného \nz rozpočtu Libereckého kraje a Závěrečná zpráva o realizaci projektu\npro víceleté dotace"]
[]
["Oblast podpory:",null,null,null,null,null,null,null,"Vyplnění žlutých polí je povinné (podbarvení po zadání textu zmizí)."]
["Název projektu:"]
[]
["Název příjemce: "]
["IČO příjemce:"]
["Bankovní spojení příjemce:",null,null,null,null,null,null,null,"Zadejte číslo bankovního účtu včetně kódu banky."]
[]
["Smlouva číslo: ",null,null,null,"OLP/xxx/20xx",null,null,null,"Zadejte číslo smlouvy poskytovatele."]
["Termín realizace projektu:"]
["Období, za které předkládáte vyúčtování:",null,null,null,null,null,null,null,"= poslední období realizace projektu"]
["Celková výše způsobilých výdajů vynaložená příjemcem na projekt -",null,null,null,"v Kč:",null,null,null,"= za celé období realizace projektu"]
["Výše způsobilých výdajů vynaložená příjemcem na projekt v daném roce -",null,null,null,"v Kč:",null,null,null,"= poslední období realizace projektu"]
["Schválená výše dotace dle smlouvy celkem - ",null,null,null,"v Kč:",null,null,null,"= pro celé období realizace projektu"]
["Schválená výše dotace dle smlouvy v daném roce - ",null,null,null,"v Kč:",null,null,null,"= poslední období realizace projektu"]
["Finanční prostředky vyplacené příjemci z rozpočtu poskytovatele v daném roce (záloha) -",null,null,null,"v Kč:",null,null,null,"= poslední období realizace projektu"]
[]
["Popis realizace projektu:"]
["(popište činnosti v rámci projektu realizované v období realizace projektu - jak byl projekt zrealizován)"]
[null,null,null,null,null,null,null,null,"Pro odřádkování použijte levý ALT + ENTER."]
[]
[]
[]
[]
[]
[]
[]
[]
[]
[]
[]
[]
[]
[]
[]
[]
[]
[]
[]
[]
[]
[]
[]
[]
["Splnění závazných parametrů:",null,null,null,null,null,null,null,"= závazné parametry pro poslední období realizace projektu"]
[]
["parametr",null,null,"jednotka","hodnota \ndle smlouvy","dosažená hodnota","dokumenty\ndokládající splnění parametru1"]
[null,null,null,null,null,null,null,null,"Zadejte všechny parametry ze smlouvy.",null,null,null,null,null,null,null,null,null,null,null,null,null,null,null,null,{"$f":"G54","v":0}]
[null,null,null,null,null,null,null,null,"Pro odřádkování použijte levý ALT + ENTER.",null,null,null,null,null,null,null,null,null,null,null,null,null,null,null,null,0]
[]
[]
[" ",null,null,null,null,null,null,null,null,null,null,null,null,null,null,null,null,null,null,null,null,null,null,null,null,0]
["Soupis účetních dokladů:",null,null,null,null,null,null,null,null,null,null,null,null,null,null,null,null,null,null,null,null,null,null,null,null,0]
[" ",null,null,null,null,null,null,null,null,null,null,null,null,null,null,null,null,null,null,null,null,null,null,null,null,0]
["p. č.","č. daňového, příp. účetního dokladu","datum úhrady daného výdaje","účel výdaje",null,"celková \nčástka","z toho hrazeno \nz dotace","z toho hrazeno \nz jiných zdrojů",false,null,null,null,null,null,null,null,null,null,null,null,null,null,null,null,null,"z toho hrazeno \nz dotace"]
[{"$f":"ROW(A62)-ROW($D$61)","v":1},null,null,null,null,null,0,{"$f":"F62-G62","v":0},"= jiné zdroje budou automaticky dopočítány, vzorec je přednastaven",null,null,null,null,null,null,null,null,null,null,null,null,null,null,null,null,0]
[2,null,null,null,null,0,0,0,null,null,null,null,null,null,null,null,null,null,null,null,null,null,null,null,null,0]
[3,null,null,null,null,0,{"$f":"IF($I$61=TRUE,F64*#REF!%,0)","v":0},0,null,null,null,null,null,null,null,null,null,null,null,null,null,null,null,null,null,0]
[4,null,null,null,null,0,{"$f":"IF($I$61=TRUE,F65*#REF!%,0)","v":0},0,null,null,null,null,null,null,null,null,null,null,null,null,null,null,null,null,null,0]
[5,null,null,null,null,0,{"$f":"IF($I$61=TRUE,F66*#REF!%,0)","v":0},0,null,null,null,null,null,null,null,null,null,null,null,null,null,null,null,null,null,0]
[6,null,null,null,null,0,{"$f":"IF($I$61=TRUE,F67*#REF!%,0)","v":0},0,null,null,null,null,null,null,null,null,null,null,null,null,null,null,null,null,null,0]
[7,null,null,null,null,0,{"$f":"IF($I$61=TRUE,F68*#REF!%,0)","v":0},0,null,null,null,null,null,null,null,null,null,null,null,null,null,null,null,null,null,0]
[8,null,null,null,null,0,{"$f":"IF($I$61=TRUE,F69*#REF!%,0)","v":0},0,null,null,null,null,null,null,null,null,null,null,null,null,null,null,null,null,null,0]
[9,null,null,null,null,0,{"$f":"IF($I$61=TRUE,F70*#REF!%,0)","v":0},0]
[10,null,null,null,null,0,{"$f":"IF($I$61=TRUE,F71*#REF!%,0)","v":0},{"$f":"F71-G71","v":0}]
[" ",null,null,null,null," "]
["CELKEM:",null,null,null,null,{"$f":"SUM(F62:F72)","v":0},{"$f":"SUM(G62:G72)","v":0},{"$f":"SUM(H62:H72)","v":0},"Pozor! Celková částka ze soupisu účetních dokladů JE VYŠŠÍ než částka způsobilých výdajů vynaložených příjemcem na projekt (v buňce F18)."]
[]
["Plátce DPH uvede částky bez DPH."]
["(pro tyto účely je za plátce DPH považována osoba, která uplatňuje nárok odpočtu DPH na vstupu)"]
[" "]
["!","Součástí vyúčtování musí být kopie prvotních daňových dokladů nebo kopie zjednodušených daňových dokladů, příp. kopie účetních dokladů včetně kopií k nim příslušných dokladů o zaplacení (výpisy z bankovního účtu nebo pokladní doklady). "]
[" "]
["!","Všechny doklady musí být označeny pořadovými čísly uvedenými v prvním sloupci soupisu účetních dokladů. \nDoklady o zaplacení pak pořadovými čísly dokladů, ke kterým se platba vztahuje."]
[" "]
["Doplňující informace (fotodokumentace projektu, články, publikace, CD a další):"]
[null,null,null,null,null,null,null,null,"Pro odřádkování použijte levý ALT + ENTER."]
[null,null,null,null,null,null,null,null,"Pokud žádné informace nemáte, napište pomlčku (a žluté podbarvení zmizí)."]
[]
[]
[]
[]
[]
[" "]
[" "]
["Zpracoval (jméno a kontakt):",null,null,null,null,null,null,null,"Zavináč -@- napíšete pomocí stisku kláves: pravý ALTGr + V."]
[null,null,null,"jméno a příjmení",null,"telefon +420 …",null,"e-mail"]
["Podpis zpracovatele:",null,null,null,null,null,null,null,"Nezapomeňte vytištěný formulář podepsat."]
[null,null,null,null,null,null,null,"podpis"]
[]
["Schválil (jméno a podpis statutárního zástupce příjemce):",null,null,null,null,null,null,null,"Nezapomeňte nechat vytištěný formulář podepsat statutárním zástupcem."]
[" ",null,null,null,null,"jméno a příjmení",null,"podpis"]
["Datum:"]
[]
[" "]
[]
["[1] Příjemce uvede výčet dokladů přiložených k závěrečné zprávě o realizaci projektu, jimiž je prokazováno splnění závazných parametrů.",null,null,null,null,null,null,null,"zpět na buňku G54 - dokumenty k parametrům"]
["Účetní doklady jsou průkazné účetní záznamy, které musí obsahovat náležitosti dle zákona č. 563/1991 Sb., o účetnictví, § 11 Účetní doklady."]
["Běžný daňový doklad musí obsahovat náležitosti daňového dokladu dle zákona č. 235/2004 Sb., o dani z přidané hodnoty, § 29 Náležitosti daňového dokladu."]
[" "]
["Stručný výtah:"]
["Účetní doklady jsou průkazné účetní záznamy, které musí obsahovat:"]
["a)","označení účetního dokladu,"]
["b)","obsah účetního případu a jeho účastníky,"]
["c)","peněžní částku nebo informaci o ceně za měrnou jednotku a vyjádření množství,"]
["d)","okamžik vyhotovení účetního dokladu,"]
["e)","okamžik uskutečnění účetního případu, není-li shodný s okamžikem podle písmene d"]
["f)","podpisový záznam podle § 33a odst. 4 osoby odpovědné za účetní případ a podpisový záznam osoby odpovědné za jeho zaúčtování."]
[" "]
[" "]
["Běžný daňový doklad musí obsahovat"]
["a)","obchodní firmu nebo jméno a příjmení, případně název, dodatek jména a příjmení nebo názvu, sídlo nebo místo podnikání, popřípadě trvalý pobyt nebo místo podnikání plátce, který uskutečňuje zdanitelné plnění,"]
["b)","daňové identifikační číslo plátce, který uskutečňuje zdanitelné plnění,"]
["c)","obchodní firmu nebo jméno a příjmení, případně název, dodatek jména a příjmení nebo názvu, sídlo nebo místo podnikání, popřípadě trvalý pobyt nebo místo podnikání plátce, pro něhož se uskutečňuje zdanitelné plnění,"]
["d)","daňové identifikační číslo plátce, pro něhož se uskutečňuje zdanitelné plnění,"]
["e)","evidenční číslo dokladu,"]
["f)","rozsah a předmět zdanitelného plnění,"]
["g)","datum vystavení dokladu,"]
["h)","datum uskutečnění zdanitelného plnění,"]
["i)","výši ceny bez daně z přidané hodnoty celkem,"]
["j)","základní nebo sníženou sazbu daně, případně sdělení, že se jedná o zdanitelné plnění osvobozené od povinnosti uplatnit daň na výstupu podle § 46 nebo § 47,"]
["k)","výši daně celkem zaokrouhlenou na desetihaléře nahoru, popřípadě uvedenou i v haléřích."]
[" "]
[" "]
[" "]
[" "]